bitfinex/quotes_SOLUSD_20240829
["timestamp","ask_amount","ask_price","bid_price","bid_amount"]
[1724960346939,21.695,141.22,141.17,7.0836]
[1724960347265,21.695,141.22,141.16,24.7934]
[1724960347566,63.94184827,141.22,141.16,24.7934]
[1724960347765,63.94184827,141.22,141.13,17.7139]
[1724960347931,71.02334827,141.22,141.14,7.085]
[1724960348664,21.695,141.22,141.15,17.7107]
[1724960348862,21.695,141.22,141.16,1.41637808]
[1724960349048,21.695,141.22,141.15,17.7107]
[1724960349360,21.695,141.22,141.15,24.7948]
[1724960350951,21.695,141.22,141.16,7.0839]
[1724960352969,28.7762,141.22,141.15,24.7953]
[1724960354966,28.7762,141.22,141.08,15.9506]
[1724960354967,21.695,141.22,141.08,15.9506]
[1724960355162,7.0841,141.16,141.09,7.0875]
[1724960355356,7.0836,141.18,141.1,7.0868]
[1724960355672,7.0836,141.18,141.11,7.0865]
[1724960356072,7.0825,141.2,141.11,17.7157]
[1724960357277,7.0825,141.2,141.13,7.0855]
[1724960357973,21.695,141.22,141.11,17.7157]
[1724960358152,7.0816,141.21,141.14,7.0847]
[1724960358352,7.0821,141.2,141.14,7.0847]
[1724960358879,7.0821,141.2,141.13,24.7988]
[1724960359574,7.0827,141.19,141.13,17.7132]
[1724960359874,22.0275,141.26,141.19,7.0825]
[1724960360080,22.0275,141.26,141.2,7.082]
[1724960360255,22.0275,141.26,141.21,7.0816]
[1724960360952,35.3764,141.34,141.16,35.4194]
[1724960360953,6.6033,141.3,141.25,7.0796]
[1724960361151,6.6033,141.3,141.24,24.7797]
[1724960361352,6.6033,141.3,141.25,1.4155462]
[1724960362202,13.6804,141.3,141.22,7.0811]
[1724960362780,7.0786,141.27,141.21,17.7038]
[1724960362995,7.0788,141.27,141.2,7.0821]
[1724960363681,7.0781,141.28,141.2,7.0821]
[1724960364371,6.6033,141.3,141.14,87.80598]
[1724960364372,74.2973,141.3,141.17,7.0835]
[1724960364567,7.0797,141.25,141.17,7.0835]
[1724960364792,7.0801,141.24,141.17,7.0833]
[1724960365004,7.0796,141.25,141.17,7.0833]
[1724960365170,7.0796,141.25,141.18,7.0829]
[1724960365980,7.0796,141.25,141.17,7.0835]
[1724960366391,7.0796,141.25,141.18,7.0829]
[1724960366791,7.0796,141.25,141.15,17.7113]
[1724960366792,45.0,141.29,141.15,17.7113]
[1724960366991,45.0,141.29,141.18,7.0828]
[1724960367194,7.0793,141.26,141.18,7.0828]
[1724960367876,7.0793,141.26,141.19,7.0825]
[1724960371108,7.0793,141.26,141.2,7.0821]
[1724960371308,48.41490947,141.29,141.2,7.0821]
[1724960371485,7.0777,141.29,141.22,7.0811]
[1724960372098,7.0782,141.28,141.22,7.0811]
[1724960372429,7.0782,141.28,141.21,24.7847]
[1724960373199,6.6033,141.3,141.2,7.0821]
[1724960373399,10.04619029,141.3,141.18,24.7901]
[1724960373599,7.0796,141.25,141.18,24.7901]
[1724960374121,7.0796,141.25,141.19,7.0825]
[1724960374423,7.0796,141.25,141.18,24.7904]
[1724960374826,13.7465,141.23,141.17,7.0836]
[1724960375120,6.6659,141.23,141.17,7.0836]
[1724960376614,6.6659,141.23,141.18,7.0826]
[1724960377135,6.6659,141.23,141.19,7.0825]
[1724960378039,6.6659,141.23,141.18,7.083]
[1724960378619,6.6659,141.23,141.2,7.0818]
[1724960378838,6.6659,141.23,141.19,24.7884]
[1724960379234,6.6659,141.23,141.17,7.0833]
[1724960379639,13.7467,141.23,141.17,7.0833]
[1724960380237,13.7467,141.23,141.16,17.71]
[1724960380857,23.6531,141.21,141.14,7.0847]
[1724960381614,16.5713,141.21,141.12,7.0857]
[1724960382025,7.0827,141.19,141.12,7.0857]
[1724960383450,7.0833,141.18,141.12,7.086]
[1724960384220,16.5713,141.21,141.12,17.7145]
[1724960384422,7.0822,141.2,141.14,7.0851]
[1724960385037,23.653,141.21,141.15,7.0846]
[1724960385237,16.5713,141.21,141.16,7.084]
[1724960385453,16.5713,141.21,141.17,1.17765823]
[1724960385760,16.5713,141.21,141.16,17.7093]
[1724960385946,16.5713,141.21,141.13,17.7136]
[1724960386452,7.0822,141.2,141.14,7.085]
[1724960388556,16.5713,141.21,141.16,17.7103]
[1724960388757,23.653,141.21,141.15,7.0845]
[1724960389652,23.653,141.21,141.13,17.7134]
[1724960389653,16.5713,141.21,141.13,17.7134]
[1724960389850,7.0826,141.2,141.13,17.7134]
[1724960390057,7.0826,141.2,141.13,24.7986]
[1724960390557,16.5713,141.21,141.12,7.086]
[1724960390743,16.5713,141.21,141.11,7.0865]
[1724960391062,7.0832,141.18,141.11,7.0865]
[1724960391439,7.0837,141.17,141.11,7.0865]
[1724960391959,7.0837,141.17,141.09,33.7925516]
[1724960391960,7.085,141.15,141.09,7.0876]
[1724960392254,13.6697,141.16,141.09,7.0876]
[1724960392440,13.6697,141.16,141.1,7.087]
[1724960392833,13.6697,141.16,141.1,6.587]
[1724960394151,6.5855,141.16,141.1,6.587]
[1724960395469,13.6698,141.16,141.11,1.41693098]
[1724960395642,6.5855,141.16,141.09,24.8059]
[1724960395958,15.1046,141.15,141.07,7.40805565]
[1724960396162,22.1893,141.15,141.08,7.0881]
[1724960396941,22.1893,141.15,141.09,7.0875]
[1724960398674,7.086,141.13,141.07,7.40805565]
[1724960398852,7.0852,141.14,141.08,7.0881]
[1724960399172,22.1894,141.15,141.09,7.0876]
[1724960400265,15.1046,141.15,141.09,17.7182]
[1724960400471,6.5855,141.16,141.15,7.0846]
[1724960400654,15.7772,141.19,141.1,6.1817]
[1724960400855,6.0905,141.21,141.17,7.0835]
[1724960401250,6.0905,141.21,141.18,7.0829]
[1724960402276,6.0905,141.21,141.17,17.7083]
[1724960403067,264.0905,141.25,141.2,7.082]
[1724960403268,6.0905,141.25,141.21,1.41600612]
[1724960403458,6.5905,141.25,141.21,1.41600612]
[1724960403644,6.5905,141.25,141.2,1.41612363]
[1724960403969,6.5905,141.25,141.16,17.7102]
[1724960404169,6.0905,141.25,141.16,17.7102]
[1724960404348,13.1706,141.25,141.17,7.0835]
[1724960404856,13.1706,141.25,141.18,7.083]
[1724960405373,5.5905,141.25,141.2,7.0816]
[1724960407269,5.5905,141.25,141.21,18.48065786]
[1724960407466,276.5295422,141.33,141.23,7.0806]
[1724960407467,21.4701,141.29,141.23,7.0806]
[1724960407855,21.9701,141.29,141.23,7.0806]
[1724960408050,21.9701,141.29,141.23,24.7814]
[1724960408259,29.0477,141.29,141.23,24.7814]
[1724960408849,28.5477,141.29,141.23,24.7814]
[1724960409157,28.5477,141.29,141.24,0.46372961]
[1724960410272,7.0796,141.25,141.18,7.0831]
[1724960411382,7.0796,141.25,141.19,7.0825]
[1724960411579,0.5,141.28,141.19,7.0825]
[1724960411580,0.5,141.28,141.19,17.7057]
[1724960411878,7.0796,141.25,141.19,24.7883]
[1724960412288,7.0792,141.26,141.19,24.7883]
[1724960412450,0.5,141.25,141.19,24.7883]
[1724960412782,7.0802,141.24,141.18,7.0831]
[1724960413677,7.0806,141.23,141.17,7.0836]
[1724960414056,3.43143057,141.27,141.19,7.0826]
[1724960414258,21.4701,141.29,141.14,6.5625]
[1724960414477,21.4701,141.29,141.16,45.0]
[1724960414871,0.5,141.28,141.16,45.0]
[1724960415081,7.0787,141.27,141.21,7.0816]
[1724960415388,29.0477,141.29,141.23,7.0805]
[1724960415587,21.4701,141.29,141.2,15.3392]
[1724960415762,21.4701,141.29,141.21,45.55630036]
[1724960415968,21.4701,141.29,141.21,46.02040073]
[1724960416674,21.4701,141.29,141.24,17.6998]
[1724960416877,28.5479,141.29,141.24,17.6998]
[1724960417179,7.5782,141.28,141.22,7.081]
[1724960417976,7.0786,141.27,141.21,24.785]
[1724960418171,21.4701,141.29,141.24,7.08]
[1724960419309,21.4701,141.29,141.25,7.0796]
[1724960420219,7.0766,141.31,141.25,7.0796]
[1724960420587,1.3401422,141.33,141.23,17.701]
[1724960420588,7.0772,141.3,141.24,7.08]
[1724960421330,7.0777,141.29,141.24,7.08]
[1724960421820,7.0772,141.3,141.24,7.08]
[1724960422497,0.5,141.29,141.23,17.701]
[1724960422700,0.5,141.32,141.23,17.701]
[1724960423011,7.0782,141.28,141.23,17.701]
[1724960423414,7.5782,141.28,141.23,17.701]
[1724960423714,7.0786,141.27,141.21,7.0815]
[1724960424302,7.0786,141.27,141.22,7.081]
[1724960424508,7.0792,141.26,141.21,7.0815]
[1724960426298,7.0787,141.27,141.21,7.0815]
[1724960426606,7.5787,141.27,141.21,7.0815]
[1724960426915,7.0787,141.27,141.21,7.0815]
[1724960427221,7.5787,141.27,141.21,7.0815]
[1724960427420,22.199,141.28,141.23,7.0805]
[1724960427607,22.199,141.28,141.22,17.7025]
[1724960427922,7.0772,141.3,141.24,7.0797]
[1724960428126,7.077,141.31,141.25,7.0793]
[1724960428492,22.199,141.32,141.26,17.6969]
[1724960429014,22.199,141.32,141.27,1.40863592]
[1724960429224,22.199,141.32,141.29,7.0775]
[1724960429401,22.199,141.32,141.3,1.40833684]
[1724960429600,22.199,141.32,141.28,7.078]
[1724960430011,22.199,141.32,141.29,7.0771]
[1724960430523,0.8401422,141.33,141.29,7.0771]
[1724960430815,0.8401422,141.33,141.3,7.0769]
[1724960432394,0.8401422,141.33,141.31,1.41420885]
[1724960432904,0.8401422,141.33,141.32,7.0761]
[1724960433398,0.8401422,141.33,141.32,67.5457]
[1724960435937,22.199,141.43,141.38,7.0727]
[1724960436225,22.199,141.43,141.38,7.073]
[1724960436997,22.199,141.43,141.37,17.683]
[1724960437199,4.69455285,141.47,141.39,24.7532]
[1724960437200,7.0696,141.45,141.39,24.7532]
[1724960437415,0.5,141.44,141.36,17.6851]
[1724960437617,7.073,141.39,141.31,41.4129]
[1724960437797,21.6134,141.4,141.33,17.689]
[1724960438222,21.6134,141.4,141.35,17.6853]
[1724960438532,21.6134,141.45,141.37,17.6832]
[1724960438825,21.6134,141.45,141.31,35.3815]
[1724960438999,7.0708,141.43,141.37,7.0732]
[1724960439427,21.6134,141.45,141.36,17.6845]
[1724960439729,7.0701,141.44,141.37,7.0731]
[1724960440024,28.683,141.45,141.38,17.6817]
[1724960440225,21.6134,141.45,141.38,17.6817]
[1724960440545,28.683,141.45,141.39,7.0725]
[1724960441329,7.0702,141.44,141.38,24.7547]
[1724960442597,28.6832,141.45,141.39,7.0722]
[1724960443142,28.1832,141.45,141.39,7.0722]
[1724960443499,7.0701,141.44,141.38,24.7547]
[1724960443805,7.0716,141.41,141.35,17.6864]
[1724960444124,0.5,141.44,141.32,17.6898]
[1724960444707,0.5,141.44,141.31,35.3815]
[1724960444926,0.5,141.44,141.34,7.0747]
[1724960445115,7.073,141.39,141.33,7.0755]
[1724960446099,7.0731,141.38,141.32,24.7651]
[1724960446302,28.3106,141.38,141.32,24.7651]
[1724960446517,7.0737,141.37,141.32,17.6891]
[1724960446711,7.0737,141.37,141.32,24.7651]
[1724960447307,7.0737,141.37,141.29,35.3863]
[1724960447308,0.5,141.37,141.29,17.6935]
[1724960447508,7.0742,141.36,141.3,7.077]
[1724960448614,21.2375,141.38,141.27,7.0782]
[1724960448615,7.076,141.33,141.27,7.0782]
[1724960448827,0.5,141.37,141.26,17.6973]
[1724960449328,21.2375,141.38,141.26,35.3951]
[1724960449542,0.5,141.37,141.26,35.3951]
[1724960449707,7.0737,141.37,141.31,7.0766]
[1724960450217,7.0741,141.36,141.3,24.7697]
[1724960450413,7.0747,141.35,141.3,17.6927]
[1724960451411,7.0751,141.34,141.27,17.6961]
[1724960451611,49.28178185,141.34,141.28,7.078]
[1724960453916,49.28178185,141.34,141.29,7.0776]
[1724960456129,7.0751,141.34,141.29,7.0776]
[1724960457840,7.0756,141.33,141.27,24.7742]
[1724960458334,7.0756,141.33,141.28,7.078]
[1724960458546,7.0761,141.32,141.27,24.7746]
[1724960458719,30.0069,141.31,141.24,17.6998]
[1724960459039,30.0069,141.31,141.25,7.0792]
[1724960460443,22.9302,141.31,141.27,7.0782]
[1724960460740,22.9302,141.31,141.26,17.6967]
[1724960460943,33.73663041,141.3,141.26,17.6967]
[1724960461442,40.81383041,141.3,141.26,17.6967]
[1724960461943,33.73663041,141.3,141.26,17.6967]
[1724960462938,33.73663041,141.3,141.26,24.7758]
[1724960463145,22.9302,141.31,141.26,24.7758]
[1724960463316,22.9302,141.31,141.27,7.0783]
[1724960465444,7.0765,141.32,141.27,7.0783]
[1724960467178,7.0757,141.33,141.28,7.0777]
[1724960467454,21.9758,141.34,141.26,35.3957]
[1724960467744,21.9758,141.34,141.31,7.0761]
[1724960468341,7.0736,141.37,141.31,7.0761]
[1724960468649,62.74573041,141.38,141.32,7.0757]
[1724960468850,55.67243041,141.38,141.33,7.0755]
[1724960469939,62.74563041,141.38,141.32,24.7657]
[1724960470121,62.74563041,141.38,141.32,17.6896]
[1724960470122,21.9358,141.38,141.32,17.6896]
[1724960470327,21.9358,141.38,141.25,15.0257]
[1724960470643,7.0751,141.34,141.29,7.0776]
[1724960470842,7.0747,141.35,141.29,7.0776]
[1724960471055,39.6194,141.38,141.28,24.7726]
[1724960471255,7.0752,141.34,141.28,24.7726]
[1724960471754,7.0761,141.32,141.28,17.6946]
[1724960471929,7.0757,141.33,141.28,17.6946]
[1724960472532,21.9358,141.38,141.29,8.49285611]
[1724960472739,7.0752,141.34,141.29,8.49285611]
[1724960473344,7.0747,141.35,141.3,7.0769]
[1724960473659,21.9358,141.38,141.31,8.4915558]
[1724960474052,21.9358,141.38,141.31,7.0765]
[1724960474241,7.0737,141.37,141.31,7.0765]
[1724960475556,21.9358,141.38,141.32,17.6896]
[1724960475741,7.0731,141.38,141.33,7.0754]
[1724960475938,7.0727,141.39,141.33,7.0755]
[1724960476629,7.0727,141.39,141.34,0.52287008]
[1724960476832,7.0727,141.39,141.33,7.0755]
[1724960477557,7.0731,141.38,141.33,7.0755]
[1724960477731,40.80973041,141.38,141.33,7.0755]
[1724960478134,40.80973041,141.38,141.32,24.7656]
[1724960478640,25.57721825,141.42,141.35,17.6862]
[1724960478855,22.1236,141.42,141.36,7.0739]
[1724960479167,29.1951,141.42,141.36,7.0739]
[1724960479551,7.0716,141.41,141.36,7.0739]
[1724960479962,29.1948,141.42,141.36,7.0739]
[1724960480163,7.0709,141.43,141.38,7.0727]
[1724960480538,42.95305203,141.46,141.35,7.0741]
[1724960481177,7.0717,141.41,141.36,7.0739]
[1724960481354,7.071,141.43,141.37,7.0734]
[1724960481540,7.0701,141.44,141.38,24.7548]
[1724960482244,7.0708,141.43,141.38,17.6817]
[1724960482440,25.28005203,141.46,141.35,17.6862]
[1724960482667,40.80843041,141.41,141.36,7.074]
[1724960482964,40.80843041,141.41,141.35,24.7604]
[1724960483662,7.0722,141.4,141.35,24.7604]
[1724960484447,7.0731,141.38,141.33,7.0755]
[1724960484953,6.5731,141.38,141.33,7.0755]
[1724960485973,7.0737,141.37,141.32,17.6898]
[1724960486143,21.7608,141.4,141.32,24.7655]
[1724960486338,7.0731,141.38,141.32,24.7655]
[1724960486843,7.0731,141.38,141.33,7.0755]
[1724960488360,21.7608,141.4,141.32,17.6898]
[1724960488567,7.0737,141.37,141.32,17.6898]
[1724960488769,21.7608,141.4,141.31,7.0762]
[1724960488770,7.0742,141.36,141.31,7.0762]
[1724960490552,7.0736,141.38,141.32,7.076]
[1724960490757,21.7608,141.4,141.3,35.3853]
[1724960491089,7.0712,141.42,141.36,7.0737]
[1724960491450,7.0712,141.42,141.37,7.0735]
[1724960492571,21.18658967,141.45,141.35,24.7602]
[1724960492572,7.0721,141.4,141.35,24.7602]
[1724960493080,21.18658967,141.45,141.35,17.6857]
[1724960494070,21.18658967,141.45,141.36,0.65921885]
[1724960494473,21.18658967,141.45,141.35,17.6857]
[1724960494679,7.0712,141.42,141.37,7.0734]
[1724960496580,7.0716,141.41,141.36,7.074]
[1724960496776,22.7910422,141.47,141.37,17.6834]
[1724960497082,7.0706,141.43,141.38,7.0726]
[1724960497769,7.0711,141.42,141.38,7.0726]
[1724960497961,7.0707,141.43,141.38,7.0726]
[1724960498656,7.0705,141.44,141.39,7.0724]
[1724960498974,7.0705,141.44,141.4,7.072]
[1724960501167,7.0697,141.45,141.4,7.072]
[1724960501762,7.0697,141.45,141.41,7.0715]
[1724960501961,0.8401422,141.47,141.43,17.6756]
[1724960502159,0.8401422,141.47,141.46,7.0691]
[1724960502890,0.8401422,141.47,141.46,52.0691]
[1724960503177,25.05313433,141.57,141.51,7.0665]
[1724960503384,7.064,141.57,141.51,7.0665]
[1724960504085,7.0643,141.56,141.51,7.0665]
[1724960504380,42.97684581,141.6,141.5,24.7338]
[1724960504976,7.0641,141.56,141.5,24.7338]
[1724960505182,7.0641,141.56,141.51,7.0666]
[1724960505390,7.0641,141.56,141.51,8.47953057]
[1724960505678,7.0637,141.57,141.51,7.0666]
[1724960505882,7.0649,141.55,141.49,7.0674]
[1724960506090,17.6598,141.57,141.46,67.3378]
[1724960506593,17.6626,141.55,141.44,17.6749]
[1724960506888,7.0666,141.51,141.45,7.0695]
[1724960507180,25.32124581,141.6,141.46,34.70702007]
[1724960507387,7.0641,141.57,141.52,7.0661]
[1724960507566,25.32124581,141.6,141.5,7.067]
[1724960507766,7.0642,141.56,141.5,7.067]
[1724960507969,7.0642,141.56,141.51,7.0664]
[1724960508368,7.0639,141.57,141.52,7.066]
[1724960509971,7.0641,141.56,141.52,7.066]
[1724960510168,7.0637,141.57,141.52,7.066]
[1724960510368,7.0642,141.56,141.51,24.7323]
[1724960511290,25.32124581,141.6,141.52,7.0658]
[1724960511470,7.0644,141.56,141.51,17.6658]
[1724960512263,7.0635,141.58,141.51,17.6658]
[1724960512584,17.6542,141.61,141.52,6.4717]
[1724960512585,3.43130969,141.61,141.52,6.4717]
[1724960512796,7.0626,141.6,141.55,7.0642]
[1724960513197,7.0626,141.6,141.56,7.064]
[1724960513373,7.0617,141.61,141.56,7.064]
[1724960515792,7.0622,141.6,141.55,7.0645]
[1724960516174,0.8401422,141.62,141.58,7.0627]
[1724960516788,7.9013422,141.62,141.57,7.0636]
[1724960516988,7.0618,141.61,141.56,24.7235]
[1724960517183,7.9013422,141.62,141.58,7.063]
[1724960517491,7.9013422,141.62,141.57,7.0635]
[1724960517797,7.0616,141.61,141.57,7.0635]
[1724960517992,7.0622,141.6,141.56,17.6595]
[1724960518299,0.8401422,141.62,141.56,24.7232]
[1724960518475,7.0622,141.6,141.56,17.6595]
[1724960518795,7.0622,141.6,141.56,24.7236]
[1724960518974,7.0622,141.6,141.56,17.6595]
[1724960519173,7.0622,141.6,141.56,24.7234]
[1724960519597,0.8401422,141.62,141.53,17.6633]
[1724960519791,7.0635,141.58,141.53,24.7287]
[1724960520098,7.0635,141.58,141.54,7.065]
[1724960520407,7.0637,141.57,141.52,29.5476]
[1724960520568,7.0637,141.57,141.53,7.0654]
[1724960520980,39.1924,141.61,141.54,7.065]
[1724960521390,7.0631,141.58,141.53,7.0654]
[1724960521801,39.1924,141.61,141.53,7.0654]
[1724960521802,7.0636,141.57,141.53,7.0654]
[1724960522176,7.0636,141.57,141.52,40.7405]
[1724960522376,7.0641,141.56,141.52,24.7306]
[1724960522581,7.0647,141.55,141.51,7.0665]
[1724960522792,7.0654,141.54,141.49,33.3645]
[1724960523304,7.0657,141.53,141.49,33.3645]
[1724960523505,7.0657,141.53,141.49,40.4319]
[1724960523875,7.0647,141.55,141.5,7.0667]
[1724960524077,7.0651,141.54,141.5,7.0667]
[1724960524294,7.0651,141.54,141.49,40.4319]
[1724960524677,25.04372381,141.61,141.46,33.3682]
[1724960524678,17.6609,141.56,141.46,33.3682]
[1724960525072,7.0671,141.5,141.46,33.3682]
[1724960525903,7.0671,141.5,141.46,17.672]
[1724960526397,7.0676,141.49,141.44,13.1592]
[1724960526588,7.0683,141.48,141.43,24.7463]
[1724960526989,7.0688,141.47,141.43,17.6758]
[1724960527216,7.0692,141.46,141.41,13.6131]
[1724960527395,17.6665,141.52,141.42,30.0]
[1724960527396,7.0696,141.45,141.42,30.0]
[1724960527590,7.0696,141.45,141.41,7.0715]
[1724960527781,7.0696,141.45,141.4,24.7519]
[1724960528602,22.9617,141.47,141.35,23.0941]
[1724960528789,17.6735,141.46,141.35,23.0941]
[1724960528976,7.0706,141.43,141.38,7.073]
[1724960529983,7.0702,141.44,141.39,7.0725]
[1724960530403,7.0706,141.43,141.38,7.073]
[1724960530991,7.0702,141.44,141.39,7.0725]
[1724960531187,22.9617,141.47,141.43,7.0705]
[1724960531503,30.0304,141.47,141.42,7.071]
[1724960531684,13.5957,141.47,141.42,7.071]
[1724960532012,16.3751,141.5,141.45,7.0695]
[1724960532310,23.4422,141.5,141.45,7.0695]
[1724960532688,7.0677,141.49,141.45,7.0695]
[1724960532887,7.0677,141.49,141.44,7.07]
[1724960533386,7.0672,141.5,141.45,7.0695]
[1724960534203,7.0677,141.49,141.44,24.7445]
[1724960536801,7.0677,141.49,141.45,7.0695]
[1724960537208,7.0672,141.5,141.45,7.0695]
[1724960538197,17.6654,141.52,141.44,17.6745]
[1724960538401,7.0676,141.49,141.44,24.7445]
[1724960538596,7.0671,141.5,141.45,7.0695]
[1724960539898,7.0677,141.49,141.44,24.7445]
[1724960540811,7.0681,141.48,141.44,17.6745]
[1724960541317,7.0686,141.47,141.44,17.6745]
[1724960541491,7.0696,141.45,141.41,17.6783]
[1724960541694,7.0691,141.46,141.41,24.7497]
[1724960542410,7.0686,141.47,141.42,7.0707]
[1724960542911,7.0692,141.46,141.41,24.7498]
[1724960545017,7.0696,141.45,141.41,24.7498]
[1724960545191,7.0713,141.42,141.38,17.6825]
[1724960546089,22.7976,141.46,141.37,7.0732]
[1724960546090,7.0718,141.41,141.37,7.0732]
[1724960546496,7.0712,141.42,141.37,7.0732]
[1724960549804,7.0707,141.43,141.38,7.073]
[1724960550107,7.0712,141.42,141.38,7.073]
[1724960551019,7.0712,141.42,141.38,7.85454206]
[1724960551204,7.0712,141.42,141.38,0.78154206]
[1724960551401,7.0712,141.42,141.38,1.41436605]
[1724960551599,7.0717,141.41,141.37,7.0736]
[1724960551801,7.0712,141.42,141.37,7.0736]
[1724960553103,7.0733,141.38,141.34,7.0747]
[1724960553316,7.0727,141.39,141.34,7.0747]
[1724960553511,17.6771,141.43,141.33,17.6886]
[1724960553512,7.0721,141.4,141.35,7.0741]
[1724960554098,7.0721,141.4,141.35,7.0745]
[1724960554298,7.0717,141.41,141.35,17.686]
[1724960554699,7.0717,141.41,141.36,7.0738]
[1724960555105,7.0728,141.39,141.35,24.7605]
[1724960556418,61.63227283,141.46,141.35,17.686]
[1724960556722,7.0712,141.42,141.37,7.0735]
[1724960556899,7.0717,141.41,141.37,7.0735]
[1724960557254,7.0717,141.41,141.36,7.074]
[1724960557804,17.676,141.44,141.35,24.7604]
[1724960559525,7.0722,141.4,141.35,24.7604]
[1724960559699,7.0717,141.41,141.36,7.0741]
[1724960560406,61.63227283,141.46,141.32,17.6899]
[1724960560407,17.6783,141.42,141.32,17.6899]
[1724960560611,17.6809,141.4,141.32,7.076]
[1724960561117,17.6809,141.4,141.31,33.9336]
[1724960561118,7.0736,141.37,141.31,33.9336]
[1724960561304,7.0742,141.36,141.31,33.9336]
[1724960561511,7.0742,141.36,141.31,41.0098]
[1724960561823,7.0742,141.36,141.31,24.7672]
[1724960562017,7.0737,141.37,141.32,7.0759]
[1724960562211,39.8384,141.4,141.32,7.0759]
[1724960562212,7.0742,141.36,141.32,7.0759]
[1724960562822,39.8384,141.4,141.32,7.0759]
[1724960562823,7.0736,141.37,141.32,7.0759]
[1724960563219,7.0743,141.36,141.31,24.7676]
[1724960563403,7.0743,141.36,141.32,7.0761]
[1724960564123,7.0736,141.37,141.33,1.41494775]
[1724960564621,7.0732,141.38,141.33,8.49044775]
[1724960564829,7.0726,141.39,141.33,19.10324775]
[1724960565121,22.7972,141.44,141.37,7.0735]
[1724960566203,7.0715,141.42,141.37,7.0735]
[1724960567523,7.0715,141.42,141.36,1.41370829]
[1724960567524,7.0715,141.42,141.38,7.0731]
[1724960567904,7.0715,141.42,141.37,7.0735]
[1724960568320,7.0715,141.42,141.36,1.4142047]
[1724960568321,17.6767,141.43,141.32,17.6896]
[1724960568500,7.0727,141.39,141.34,7.0747]
[1724960569127,7.0731,141.38,141.34,7.0747]
[1724960570110,7.0727,141.39,141.34,7.0747]
[1724960574930,7.0727,141.39,141.32,17.6896]
[1724960574931,17.6767,141.43,141.32,17.6896]
[1724960575108,7.0739,141.37,141.32,24.7653]
[1724960577024,7.0732,141.38,141.32,17.6896]
[1724960577234,7.0736,141.37,141.33,7.0756]
[1724960578106,7.074,141.37,141.32,24.7656]
[1724960578304,7.074,141.37,141.32,17.6896]
[1724960578505,7.0752,141.34,141.29,24.7708]
[1724960579833,7.0767,141.31,141.27,13.3569]
[1724960580038,17.687,141.35,141.26,17.6972]
[1724960580213,33.73663041,141.32,141.26,17.6972]
[1724960580631,7.0767,141.31,141.26,24.7759]
[1724960582332,7.0767,141.31,141.27,7.0785]
[1724960583210,7.0772,141.3,141.26,17.6972]
[1724960583416,7.0777,141.29,141.24,15.0417]
[1724960583642,7.0782,141.28,141.24,15.0417]
[1724960583842,6.1883,141.32,141.23,17.7008]
[1724960585241,78.8067,141.31,141.2,32.747]
[1724960585537,7.0797,141.25,141.21,7.0815]
[1724960586121,7.0802,141.24,141.2,17.7053]
[1724960586327,17.6949,141.29,141.2,7.082]
[1724960586524,7.08,141.25,141.2,7.082]
[1724960586725,7.0807,141.23,141.18,7.0827]
[1724960586924,7.0812,141.22,141.17,24.792]
[1724960587142,7.081,141.23,141.18,7.083]
[1724960587539,17.6972,141.27,141.17,17.7085]
[1724960587740,7.08,141.25,141.2,7.082]
[1724960588330,7.08,141.25,141.21,1.12135176]
[1724960589440,7.08,141.25,141.2,7.082]